bitfinex-derivatives/quotes_ETHF0:USTF0_20210407
["timestamp","ask_amount","ask_price","bid_price","bid_amount"]
[1617770378362,0.05453526,2087.1,2086.5,5.9]
[1617770378563,2.90695,2086.6,2086.5,5.9]
[1617770380566,64.42495,2086.6,2086.5,5.9]
[1617770381565,64.42495,2086.6,2086.0,6.0]
[1617770381768,4.96265,2086.6,2086.5,5.82]
[1617770382165,4.96265,2086.6,2085.3,79.0947]
[1617770382166,69.3531,2086.1,2086.0,5.99]
[1617770382367,69.3531,2086.1,2085.5,6.0]
[1617770382567,69.3531,2086.1,2086.0,2.90695]
[1617770382767,69.3531,2086.1,2086.0,8.80695]
[1617770382968,69.3531,2086.1,2086.0,2.90695]
[1617770383369,2.0557,2086.6,2086.0,8.72695]
[1617770383575,2.0557,2086.6,2086.1,67.6282]
[1617770383576,76.7385,2086.6,2086.1,67.6282]
[1617770383969,76.7385,2086.6,2086.2,5.96]
[1617770384670,2.90695,2086.3,2086.2,5.96]
[1617770385870,2.90695,2086.3,2086.0,2.90695]
[1617770385871,68.7556,2086.2,2086.1,6.04]
[1617770386273,68.7556,2086.2,2086.0,2.90695]
[1617770386473,68.7556,2086.2,2086.1,5.91]
[1617770386872,68.7556,2086.2,2085.2,6.04]
[1617770387170,68.7556,2086.2,2086.1,5.8]
[1617770387571,68.7556,2086.2,2085.2,5.82]
[1617770387772,68.7556,2086.2,2086.1,6.0]
[1617770388171,68.7556,2086.2,2085.2,5.81]
[1617770388371,68.7556,2086.2,2086.1,6.03]
[1617770388773,68.7556,2086.2,2085.2,8.89695]
[1617770388973,68.7556,2086.2,2086.1,6.0]
[1617770389173,5.77915,2086.3,2086.1,6.0]
[1617770389372,55.1628,2086.2,2085.5,56.4215]
[1617770389773,55.1628,2086.2,2085.6,3.0]
[1617770390675,2.90695,2085.7,2085.6,3.0]
[1617770391075,55.4372,2085.6,2085.3,5.92]
[1617770391476,55.4372,2085.6,2085.2,2.90695]
[1617770391675,55.4372,2085.6,2085.4,5.76]
[1617770392077,55.4372,2085.6,2085.3,5.86]
[1617770392277,55.4372,2085.6,2085.2,2.90695]
[1617770392577,55.4372,2085.6,2085.3,5.79]
[1617770394779,2.90695,2085.4,2085.3,5.79]
[1617770394979,5.36195,2085.4,2085.3,5.79]
[1617770396783,5.36195,2085.4,2085.1,5.99]
[1617770396983,5.36195,2085.4,2085.3,5.83]
[1617770397383,5.36195,2085.4,2085.1,5.8]
[1617770397583,5.36195,2085.4,2085.3,5.9]
[1617770397884,5.36195,2085.4,2085.0,62.9266]
[1617770398083,5.36195,2085.4,2085.1,5.96]
[1617770398284,5.36195,2085.4,2085.3,5.75]
[1617770398484,5.36195,2085.4,2085.1,5.97]
[1617770398885,5.36195,2085.4,2085.3,6.0]
[1617770399087,5.36195,2085.4,2085.1,5.97]
[1617770399483,5.36195,2085.4,2085.3,5.92]
[1617770399685,5.36195,2085.4,2085.0,62.9266]
[1617770399885,5.36195,2085.4,2085.1,5.9]
[1617770400084,5.36195,2085.4,2085.3,5.95]
[1617770400286,5.36195,2085.4,2085.1,5.98]
[1617770401487,5.36195,2085.4,2085.1,5.5742]
[1617770404990,2.90695,2085.4,2085.1,5.5742]
[1617770413509,58.1291,2085.2,2085.1,5.5742]
[1617770414206,58.1291,2085.2,2085.1,2.031]
[1617770422720,2.90695,2085.4,2085.1,2.031]
[1617770425423,2.90695,2085.4,2085.3,57.1901]
[1617770425824,2.90695,2085.4,2085.3,63.0701]
[1617770439039,2.90695,2085.4,2085.3,5.88]
[1617770439439,2.90695,2085.4,2084.9,2.90695]
[1617770439440,58.3365,2085.3,2085.0,65.3244]
[1617770441145,2.90695,2085.1,2085.0,65.3244]
[1617770445951,2.90695,2085.1,2085.0,5.78]
[1617770451258,2.90695,2085.1,2085.0,7.9174]
[1617770452558,2.90695,2085.1,2085.0,5.78]
[1617770468386,2.90695,2085.1,2084.3,5.98]
[1617770468687,2.90695,2085.1,2085.0,5.86]
[1617770469086,2.90695,2085.1,2084.3,5.81]
[1617770469288,67.5149,2084.5,2084.2,56.9394]
[1617770469489,2.90695,2084.4,2084.2,56.9394]
[1617770469687,2.90695,2084.4,2084.3,6.01]
[1617770483096,2.90695,2084.4,2083.9,2.90695]
[1617770483097,5.51435,2084.4,2084.0,5.89]
[1617770483797,2.90695,2084.1,2083.7,5.92]
[1617770484198,58.4454,2083.7,2083.6,61.27535]
[1617770484797,58.4454,2083.7,2083.6,67.15535]
[1617770485899,61.35235,2083.7,2083.6,67.15535]
[1617770486302,2.90695,2083.7,2083.6,8.78695]
[1617770487502,2.90695,2083.7,2083.6,10.78695]
[1617770488800,56.7532,2084.6,2083.6,40.78695]
[1617770489000,56.7532,2084.6,2083.8,2.0]
[1617770489301,56.7532,2084.6,2083.8,7.77]
[1617770489499,56.7532,2084.6,2083.8,37.77]
[1617770489900,0.9599,2085.5,2084.4,2.90695]
[1617770490104,0.9599,2085.5,2084.8,71.7025]
[1617770490301,75.9065,2085.6,2084.8,71.7025]
[1617770490501,75.9065,2085.6,2084.9,8.627]
[1617770491704,75.9065,2085.6,2084.9,6.0]
[1617770491904,2.90695,2085.0,2084.9,6.0]
[1617770492305,72.61905,2085.0,2084.9,6.0]
[1617770492507,72.61905,2085.0,2084.6,66.1372]
[1617770492707,72.61905,2085.0,2084.9,5.84]
[1617770493107,72.61905,2085.0,2084.6,66.1372]
[1617770493307,72.61905,2085.0,2084.9,8.4506]
[1617770493707,72.61905,2085.0,2084.9,2.5206]
[1617770493907,72.61905,2085.0,2084.9,8.5306]
[1617770495214,2.90695,2085.0,2084.9,8.5306]
[1617770504023,2.90695,2085.0,2084.9,6.01]
[1617770504423,2.90695,2085.0,2084.6,5.97]
[1617770504623,77.8072,2084.9,2084.6,5.97]
[1617770504824,77.8072,2084.9,2084.5,2.90695]
[1617770505024,77.8072,2084.9,2084.6,5.92]
[1617770505825,2.90695,2084.7,2084.6,5.92]
[1617770517434,0.9542,2085.4,2084.6,37.92]
[1617770517634,0.05475701,2086.0,2084.8,2.0]
[1617770517835,0.05469617,2086.4,2084.8,2.0]
[1617770518035,0.05469617,2086.4,2086.2,2.90695]
[1617770518237,0.05472877,2086.7,2086.2,5.75755]
[1617770518433,0.05472877,2086.7,2086.5,57.2799]
[1617770518835,5.15273797,2086.8,2086.6,5.76]
[1617770519036,5.098,2086.8,2086.6,5.76]
[1617770520037,5.098,2086.8,2086.7,2.90695]
[1617770520240,5.098,2086.8,2086.7,5.30735]
[1617770520637,5.098,2086.8,2086.7,11.33735]
[1617770520838,77.2489,2087.3,2086.7,11.33735]
[1617770522041,2.90695,2086.8,2086.7,11.33735]
[1617770528357,2.90695,2086.8,2086.7,80.81965]
[1617770532063,2.90695,2086.8,2086.7,11.33735]
[1617770533062,2.90695,2086.8,2086.7,6.03]
[1617770533462,67.4753,2085.8,2085.7,5.78]
[1617770533661,67.4753,2085.8,2085.6,32.0]
[1617770534061,67.4753,2085.8,2085.7,5.92]
[1617770534265,67.4753,2085.8,2085.7,38.82695]
[1617770535062,2.0,2087.8,2085.7,38.82695]
[1617770535270,61.1865,2086.5,2085.7,41.60985]
[1617770536167,61.1865,2086.5,2086.4,2.90695]
[1617770536567,61.1865,2086.5,2086.4,8.69695]
[1617770536769,0.9706,2086.5,2086.4,8.69695]
[1617770536967,1.964,2087.9,2086.4,8.69695]
[1617770537167,65.5442,2087.2,2086.4,8.69695]
[1617770538267,65.5442,2087.2,2086.8,4.96265]
[1617770538671,65.5442,2087.2,2086.9,5.76]
[1617770540170,2.90695,2087.0,2086.9,5.76]
[1617770548782,2.90695,2087.0,2086.9,60.8305]
[1617770548983,2.90695,2087.0,2086.9,62.8305]
[1617770550182,2.90695,2087.0,2086.9,60.8305]
[1617770554288,2.90695,2087.0,2086.9,63.0314]
[1617770555190,67.9598,2088.0,2086.9,63.0314]
[1617770555391,12.716,2088.6,2086.9,7.9609]
[1617770555592,55.7392,2088.3,2087.5,53.9374]
[1617770555793,55.7392,2088.3,2087.6,5.86]
[1617770555993,12.716,2088.6,2087.6,5.86]
[1617770556193,12.716,2088.6,2087.6,35.86]
[1617770556393,12.716,2088.6,2088.4,4.81575]
[1617770556796,5.098,2088.6,2088.5,6.02]
[1617770557797,0.9691,2089.5,2088.5,6.02]
[1617770558397,0.9691,2089.5,2089.1,2.90695]
[1617770558597,0.9691,2089.5,2089.3,61.2466]
[1617770558796,0.9691,2089.5,2089.4,5.92]
[1617770559796,0.9691,2089.5,2087.8,63.3822]
[1617770559997,3.1798,2089.5,2087.8,63.3822]
[1617770560201,5.1798,2089.5,2087.8,63.3822]
[1617770560397,72.2074,2088.8,2088.4,2.90695]
[1617770560598,73.1576,2088.8,2088.4,2.90695]
[1617770560797,73.1576,2088.8,2088.5,6.02]
[1617770561798,73.1576,2088.8,2087.9,5.74]
[1617770561799,75.0554,2088.8,2087.9,5.74]
[1617770561999,75.0554,2088.8,2088.6,5.74]
[1617770562399,2.90695,2088.7,2088.0,2.90695]
[1617770562801,2.90695,2088.7,2088.1,5.99]
[1617770564502,5.21025,2088.2,2088.1,5.99]
[1617770565504,5.21025,2088.2,2088.1,5.3017]
[1617770565703,5.21025,2088.2,2087.5,6.02]
[1617770565903,74.8126,2087.9,2087.4,79.0095]
[1617770566103,5.21025,2088.2,2086.0,12.5596]
[1617770566304,7.21025,2088.2,2087.6,5.87]
[1617770566506,7.21025,2088.2,2087.5,5.75]
[1617770566507,4.3033,2088.2,2087.5,5.75]
[1617770566704,63.92,2087.5,2087.2,8.72695]
[1617770566905,64.876,2087.5,2087.3,0.18]
[1617770567104,64.876,2087.5,2087.2,2.90695]
[1617770567504,64.876,2087.5,2087.3,5.77]
[1617770568507,2.90695,2087.4,2087.3,5.77]
[1617770570406,2.90695,2087.4,2087.3,5.3367]
[1617770570606,2.90695,2087.4,2087.3,81.4538]
[1617770571908,2.90695,2087.4,2087.3,5.3367]
[1617770574608,2.90695,2087.4,2087.3,3.9089]
[1617770580215,2.90695,2087.4,2087.3,3.6676]
[1617770580415,2.90695,2087.4,2086.4,61.0712]
[1617770580416,53.6986,2087.3,2086.4,61.0712]
[1617770580817,53.6986,2087.3,2086.4,60.8282]
[1617770581019,55.6986,2087.3,2086.4,60.8282]
[1617770581218,55.6986,2087.3,2086.5,5.94]
[1617770582423,2.90695,2086.6,2086.5,5.94]
[1617770582619,6.15865,2086.6,2086.5,5.94]
[1617770585021,3.85465,2086.6,2086.5,5.94]
[1617770587027,6.83555,2086.6,2086.5,2.6014]
[1617770588532,6.83555,2086.6,2086.5,2.0706]
[1617770588733,6.83555,2086.6,2086.5,1.7239]
[1617770592639,3.85465,2086.6,2086.5,1.7239]
[1617770593644,6.09805,2086.6,2086.5,1.7239]
[1617770595242,6.09805,2086.6,2086.4,60.8282]
[1617770596342,3.85465,2086.6,2086.4,60.8282]
[1617770597243,3.85465,2086.6,2086.5,5.85]
[1617770598746,3.85465,2086.6,2086.4,60.8282]
[1617770599145,3.85465,2086.6,2086.4,60.7326]
[1617770600145,3.85465,2086.6,2086.5,5.93]
[1617770601147,3.85465,2086.6,2086.5,5.8077]
[1617770602249,5.85465,2086.6,2086.4,59.0678]
[1617770604053,5.85465,2086.6,2083.6,1.1]
[1617770604250,77.5754,2085.5,2084.6,75.1748]
[1617770604451,79.7895,2085.5,2084.6,75.1748]
[1617770604853,79.7895,2085.5,2085.4,2.90695]
[1617770605052,80.7396,2085.5,2085.4,2.90695]
[1617770605256,80.7396,2085.5,2085.4,8.73695]
[1617770605454,79.7895,2085.5,2085.4,8.73695]
[1617770605653,2.2141,2085.5,2085.4,8.73695]
[1617770606755,5.12105,2085.5,2085.4,8.73695]
[1617770608358,3.86875,2085.5,2085.4,8.73695]
[1617770608758,2.90695,2085.5,2085.4,8.73695]
[1617770618179,3.86625,2085.5,2085.4,8.73695]
[1617770618574,2.90695,2085.5,2085.4,8.73695]
[1617770619976,3.87585,2085.5,2085.4,8.73695]
[1617770620576,2.90695,2085.5,2085.4,8.73695]
[1617770622783,3.85385,2085.5,2085.4,8.73695]
[1617770622979,2.90695,2085.5,2085.4,8.73695]
[1617770624580,3.86205,2085.5,2085.4,8.73695]
[1617770624783,2.90695,2085.5,2085.4,8.73695]
[1617770632190,3.86995,2085.5,2085.4,8.73695]
[1617770632789,2.90695,2085.5,2085.4,8.73695]
[1617770632991,5.67705,2085.5,2085.4,8.73695]
[1617770634190,5.67705,2085.5,2085.4,5.83]
[1617770634591,68.407,2085.4,2084.5,5.83]
[1617770634992,68.407,2085.4,2084.4,5.95]
[1617770635193,68.407,2085.4,2085.1,2.90695]
[1617770635595,68.407,2085.4,2085.2,3.64]
[1617770636594,3.7337,2085.5,2085.2,3.64]
[1617770637195,2.90695,2085.3,2085.2,3.64]
[1617770637795,2.90695,2085.3,2084.7,2.90695]
[1617770637796,78.7666,2085.2,2084.8,5.79]
[1617770637996,78.7666,2085.2,2084.7,2.90695]
[1617770638397,78.7666,2085.2,2084.9,5.87]
[1617770638598,78.7666,2085.2,2084.7,2.90695]
[1617770638997,78.7666,2085.2,2085.0,5.93]
[1617770639198,78.7666,2085.2,2084.8,5.99]
[1617770639398,78.7666,2085.2,2084.7,2.90695]
[1617770639597,78.7666,2085.2,2085.1,5.79]
[1617770639798,78.7666,2085.2,2084.8,5.96]
[1617770640199,78.7666,2085.2,2085.1,5.96]
[1617770640399,2.90695,2085.3,2084.8,5.82]
[1617770640803,2.90695,2085.3,2085.1,5.83]
[1617770641201,2.90695,2085.3,2083.8,2.90695]
[1617770641402,59.7697,2085.1,2083.8,2.90695]
[1617770642203,59.7697,2085.1,2083.9,5.85]
[1617770642604,59.7697,2085.1,2083.6,5.99]
[1617770643005,59.7697,2085.1,2084.0,5.91]
[1617770643206,2.90695,2084.1,2083.6,6.03]
[1617770643408,5.24835,2084.1,2083.6,6.03]
[1617770643606,69.0236,2083.9,2083.5,2.90695]
[1617770643806,69.0236,2083.9,2083.7,6.01]
[1617770644206,69.0236,2083.9,2083.6,5.75]
[1617770644407,69.0236,2083.9,2083.8,5.78]
[1617770644809,69.0236,2083.9,2083.6,5.87]
[1617770645011,69.0236,2083.9,2083.8,5.79]
[1617770645209,69.0236,2083.9,2083.8,8.69695]
[1617770645412,69.0236,2083.9,2083.8,2.90695]
[1617770645616,69.0236,2083.9,2083.8,8.73695]
[1617770658523,2.6312,2084.0,2083.8,8.73695]
[1617770661325,2.6312,2084.0,2083.8,5.83]
[1617770661827,2.90695,2084.1,2083.6,2.90695]
[1617770662026,2.90695,2084.1,2083.9,5.81]
[1617770662426,2.90695,2084.1,2083.6,2.90695]
[1617770662625,69.8907,2083.9,2083.8,5.82]
[1617770662825,69.8907,2083.9,2083.7,6.02]
[1617770663225,69.8907,2083.9,2083.8,5.99]
[1617770663425,69.8907,2083.9,2083.7,5.87]
[1617770663625,2.90695,2083.8,2083.7,5.87]
[1617770663825,2.90695,2083.8,2083.6,5.64675]
[1617770664025,2.90695,2083.8,2083.7,5.85]
[1617770668728,2.90695,2083.8,2083.7,7.85]
[1617770668929,66.9021,2085.5,2083.8,62.0311]
[1617770669129,0.9636,2085.5,2083.9,32.0]
[1617770669328,0.9636,2085.5,2084.6,62.0222]
[1617770669531,0.9636,2085.5,2084.6,64.2217]
[1617770669730,0.9636,2085.5,2084.9,2.90695]
[1617770670130,0.9636,2085.5,2085.0,5.85]
[1617770670333,65.929,2085.8,2085.0,5.85]
[1617770671635,2.90695,2085.1,2085.0,5.85]
[1617770679949,2.90695,2085.1,2083.3,30.0]
[1617770680150,5.27685,2085.1,2083.3,30.0]
[1617770680349,75.7369,2084.0,2083.3,30.0]
[1617770680751,75.7369,2084.0,2083.4,6.04]
[1617770680950,75.7369,2084.0,2083.5,30.0]
[1617770681150,75.7369,2084.0,2083.6,7.99]
[1617770681550,75.7369,2084.0,2083.6,5.99]
[1617770681750,75.7369,2084.0,2083.9,2.90695]
[1617770682351,75.7369,2084.0,2083.9,8.80695]
[1617770682550,75.7369,2084.0,2083.9,5.9]
[1617770682951,75.7369,2084.0,2083.4,5.93]
[1617770683351,75.7369,2084.0,2083.9,5.93]
[1617770683552,75.7369,2084.0,2083.3,2.0]
[1617770683751,75.7369,2084.0,2083.4,5.83]
[1617770683951,75.7369,2084.0,2083.9,6.04]
[1617770684352,75.7369,2084.0,2083.4,6.0]
[1617770684552,75.7369,2084.0,2083.9,5.86]
[1617770684856,75.7369,2084.0,2083.3,4.90695]
[1617770685055,75.7369,2084.0,2083.4,5.82]
[1617770685758,2.90695,2083.5,2083.4,5.82]
[1617770688557,5.24825,2083.5,2083.4,5.82]
[1617770690059,2.90695,2083.5,2083.4,5.82]
[1617770694169,5.46885,2083.5,2083.4,5.82]
[1617770694767,5.46885,2083.5,2082.5,5.94]
[1617770695166,5.46885,2083.5,2083.4,5.75]
[1617770695370,5.46885,2083.5,2082.6,5.88]
[1617770695567,69.1553,2083.1,2082.6,5.88]
[1617770695769,69.1553,2083.1,2082.3,96.666]
[1617770695968,69.1553,2083.1,2082.5,2.90695]
[1617770696169,69.1553,2083.1,2082.7,5.76]
[1617770696371,69.1553,2083.1,2082.6,5.79]
[1617770696771,69.1553,2083.1,2082.8,6.03]
[1617770696972,69.1553,2083.1,2082.6,5.79]
[1617770697173,2.5619,2083.5,2082.6,5.79]
[1617770697373,2.5619,2083.5,2082.9,5.86]
[1617770697574,2.5619,2083.5,2082.6,6.03]
[1617770697773,58.0666,2082.9,2082.6,6.03]
[1617770697976,2.90695,2082.7,2082.5,2.90695]
[1617770698173,2.90695,2082.7,2082.6,5.77]
[1617770700477,2.90695,2082.7,2082.6,5.4112]
[1617770701078,2.90695,2082.7,2082.6,4.8462]
[1617770701579,2.90695,2082.7,2082.6,4.7932]
[1617770701779,2.90695,2082.7,2082.6,4.4112]
[1617770701979,2.90695,2082.7,2082.6,4.3562]
[1617770702180,2.90695,2082.7,2082.6,4.2803]
[1617770708991,2.90695,2082.7,2082.5,2.90695]
[1617770711093,2.90695,2082.7,2081.7,69.8426]
[1617770711894,2.90695,2082.7,2081.8,5.98]
[1617770712095,0.9581,2083.0,2082.2,2.90695]
[1617770712294,0.9581,2083.0,2082.3,5.81]
[1617770712495,2.9581,2083.0,2082.3,5.81]
[1617770712696,32.9581,2083.0,2082.3,5.81]
[1617770713497,32.9581,2083.0,2082.2,2.36325]
[1617770713703,69.7937,2082.3,2082.2,2.36325]
[1617770713902,1.9535,2082.3,2080.6,30.0]
[1617770714103,67.7913,2082.2,2081.1,2.90695]
[1617770714504,67.7913,2082.2,2081.1,32.90695]
[1617770714704,67.7913,2082.2,2081.2,5.85]
[1617770716004,67.7913,2082.2,2081.6,2.90695]
[1617770716506,67.7913,2082.2,2081.7,5.99]
[1617770717106,5.3432,2083.0,2081.7,5.99]
[1617770717507,80.54,2082.8,2081.7,5.99]
[1617770717708,35.3432,2083.0,2081.7,5.99]
[1617770718108,2.90695,2081.8,2081.1,8.88695]
[1617770718310,5.17025,2081.8,2081.1,8.88695]
[1617770720213,2.90695,2081.2,2081.1,8.88695]
[1617770722514,2.90695,2081.2,2081.1,38.88695]
[1617770722715,65.8117,2082.7,2081.1,38.88695]
[1617770722917,2.9581,2083.0,2081.1,41.57855]
[1617770722918,0.9581,2083.0,2081.1,41.57855]
[1617770723115,66.7603,2083.0,2081.5,80.1307]
[1617770723320,66.7603,2083.0,2081.6,5.93]
[1617770723514,66.7603,2083.0,2081.6,8.1477]
[1617770723715,66.7603,2083.0,2081.6,40.1477]
[1617770724216,66.7603,2083.0,2082.0,2.90695]
[1617770724617,0.9581,2083.0,2082.1,5.76]
[1617770724817,0.9581,2083.0,2082.1,8.4319]
[1617770725617,74.0662,2082.3,2082.1,8.4319]
[1617770726120,2.90695,2082.2,2082.1,8.4319]
[1617770731928,74.0662,2082.3,2082.1,8.4319]
[1617770732328,2.90695,2082.3,2082.1,8.4319]
[1617770732528,2.90695,2082.3,2082.2,30.0]
[1617770732728,2.90695,2082.3,2082.2,35.91]
[1617770733129,2.90695,2082.3,2082.2,37.91]
[1617770733330,0.9466,2084.1,2082.2,37.91]
[1617770733531,74.3631,2083.7,2082.3,64.5654]
[1617770733729,74.3631,2083.7,2082.5,2.0]
[1617770733929,0.9466,2084.1,2082.7,2.0]
[1617770734128,74.3489,2084.4,2082.8,30.0]
[1617770734329,74.3489,2084.4,2083.4,2.90695]
[1617770734630,0.9682,2085.3,2083.4,5.15385]
[1617770734830,61.1966,2084.7,2083.5,55.3922]
[1617770735230,61.1966,2084.7,2083.5,85.3922]
[1617770736232,61.1966,2084.7,2084.3,2.90695]
[1617770736432,61.1966,2084.7,2084.3,4.97845]
[1617770736632,61.1966,2084.7,2084.4,6.0]
[1617770737232,0.9672,2085.3,2084.4,6.0]
[1617770738234,2.90695,2084.5,2084.0,5.82]
[1617770738433,67.125,2084.4,2084.0,5.82]
[1617770738638,67.125,2084.4,2083.6,0.59]
[1617770738835,67.125,2084.4,2084.1,5.94]
[1617770739236,67.125,2084.4,2083.6,3.14]
[1617770739437,2.90695,2084.5,2084.2,5.93]
[1617770739838,2.90695,2084.5,2082.8,30.0]
[1617770739839,2.90695,2084.5,2083.7,2.35]
[1617770740036,57.8777,2084.0,2083.7,2.35]
[1617770740237,2.90695,2083.8,2082.9,2.90695]
[1617770740436,2.90695,2083.8,2083.0,35.8]
[1617770740637,2.90695,2083.8,2083.0,30.0]
[1617770741037,2.90695,2083.8,2083.1,5.92]
[1617770742237,2.90695,2083.2,2083.1,5.92]
[1617770743840,2.90695,2083.2,2083.1,35.92]
[1617770744239,2.90695,2083.2,2083.1,32.0]
[1617770744438,2.90695,2083.2,2083.1,37.91]
[1617770745039,55.4074,2084.0,2083.1,37.91]
[1617770745239,5.098,2086.0,2083.1,37.91]
[1617770745439,58.6683,2084.5,2083.3,80.8399]
[1617770745641,58.6683,2084.5,2083.4,30.0]
[1617770745840,58.6683,2084.5,2083.4,37.95]
[1617770746242,58.6683,2084.5,2084.2,2.90695]
[1617770746445,2.571,2085.6,2084.2,5.41505]
[1617770746642,56.3782,2084.8,2084.3,5.91]
[1617770748344,56.3782,2084.8,2084.6,2.90695]
[1617770748745,56.3782,2084.8,2084.7,8.4136]
[1617770749344,56.3782,2084.8,2084.7,2.3936]
[1617770749545,56.3782,2084.8,2084.7,8.2136]
[1617770750145,56.3782,2084.8,2084.7,5.82]
[1617770750345,59.28515,2084.8,2084.3,2.90695]
[1617770750745,59.28515,2084.8,2084.7,5.78]
[1617770750946,59.28515,2084.8,2084.4,6.01]
[1617770752347,2.90695,2084.5,2084.4,6.01]
[1617770769964,2.90695,2084.5,2084.4,36.01]
[1617770770565,2.571,2085.6,2084.4,36.01]
[1617770770764,2.571,2085.6,2084.5,55.5514]
[1617770770964,2.571,2085.6,2084.6,32.0]
[1617770771165,2.571,2085.6,2084.6,37.99]
[1617770772566,2.571,2085.6,2085.5,2.90695]
[1617770772766,2.571,2085.6,2085.5,35.51275]
[1617770772966,2.571,2085.6,2085.5,41.49275]
[1617770773366,2.571,2085.6,2085.5,43.49275]
[1617770773766,5.098,2086.0,2085.5,43.49275]
[1617770773968,68.0523,2087.3,2086.5,69.3116]
[1617770774166,68.0523,2087.3,2086.5,99.3116]
[1617770774368,68.0523,2087.3,2086.5,101.6384]
[1617770774567,68.0523,2087.3,2086.9,2.90695]
[1617770774968,68.0523,2087.3,2087.0,5.84]
[1617770775176,68.0523,2087.3,2087.0,8.8395]
[1617770776170,5.098,2087.9,2087.0,8.8395]
[1617770776370,73.2819,2087.7,2087.0,73.9789]
[1617770776569,2.90695,2087.1,2087.0,73.9789]
[1617770777571,2.90695,2087.1,2087.0,8.8395]
[1617770778171,2.90695,2087.1,2087.0,5.84]
[1617770780273,60.5303,2087.3,2087.0,5.84]
[1617770780472,60.5303,2087.3,2087.0,35.84]
[1617770780673,2.90695,2087.7,2087.2,2.90695]
[1617770780872,2.90695,2087.7,2087.3,57.4133]
[1617770781079,2.90695,2087.7,2087.3,63.4133]
[1617770782375,2.90695,2087.7,2087.4,2.0]
[1617770782577,2.90695,2087.7,2087.6,2.90695]
[1617770782777,2.90695,2087.7,2087.6,5.17775]
[1617770782977,2.90695,2087.7,2087.6,11.06775]
[1617770784578,2.90695,2087.7,2087.6,41.06775]
[1617770785181,2.90695,2087.7,2087.6,43.06775]
[1617770786779,3.87635,2087.7,2087.6,43.06775]
[1617770786981,2.90695,2087.7,2087.6,43.06775]
[1617770787783,2.90695,2087.7,2087.6,11.06775]
[1617770787982,2.90695,2087.7,2087.6,8.79695]
[1617770788183,2.90695,2087.7,2087.6,10.79695]
[1617770788184,63.78675,2087.7,2087.6,10.79695]
[1617770788581,63.78675,2087.7,2087.6,8.79695]
[1617770788782,2.90695,2087.7,2087.6,8.79695]
[1617770789382,60.8506,2088.7,2087.6,8.79695]
[1617770790784,60.8506,2088.7,2088.0,2.90695]
[1617770791183,60.8506,2088.7,2088.1,5.81]
[1617770792284,0.9552,2089.1,2088.1,5.81]
[1617770792684,2.90695,2088.2,2088.1,5.81]
[1617770794486,2.90695,2088.2,2087.5,2.84]
[1617770794686,2.90695,2087.6,2087.5,2.84]
[1617770800990,73.623,2087.8,2087.5,2.84]
[1617770802793,73.623,2087.8,2087.7,2.90695]
[1617770802994,2.90695,2087.9,2087.7,2.90695]
[1617770803195,2.90695,2087.9,2087.7,79.34735]
[1617770804296,2.90695,2087.9,2087.7,8.68695]
[1617770804899,3.87745,2087.9,2087.7,8.68695]
[1617770805100,2.90695,2087.9,2087.7,8.68695]
[1617770805301,77.54205,2087.9,2087.7,8.68695]
[1617770806499,77.54205,2087.9,2087.7,5.78]
[1617770806702,77.54205,2087.9,2087.2,5.83]
[1617770806900,74.6351,2087.9,2087.5,2.90695]
[1617770807102,74.6351,2087.9,2087.8,5.9]
[1617770807301,74.6351,2087.9,2087.6,5.93]
[1617770808802,74.6351,2087.9,2087.8,2.90695]
[1617770809402,74.6351,2087.9,2087.8,8.68695]
[1617770810906,77.54205,2087.9,2087.8,8.68695]
[1617770811106,2.90695,2087.9,2087.8,8.68695]
[1617770813412,3.85515,2087.9,2087.8,8.68695]
[1617770813612,2.90695,2087.9,2087.8,8.68695]
[1617770814011,2.90695,2087.9,2087.8,7.98385]
[1617770818221,3.86165,2087.9,2087.8,7.98385]
[1617770818424,2.90695,2087.9,2087.8,7.98385]
[1617770820223,60.4871,2087.8,2087.0,2.0]
[1617770820423,5.80735,2087.9,2086.3,30.0]
[1617770820622,6.75685,2087.9,2085.4,30.0]
[1617770820824,60.4958,2086.7,2086.4,5.82]
[1617770821023,65.45885,2086.7,2086.6,2.90695]
[1617770821424,66.42535,2086.7,2086.6,3.31695]
[1617770821823,66.42535,2086.7,2086.6,0.41]
[1617770822023,66.42535,2086.7,2086.1,5.78]
[1617770822222,3.87345,2086.7,2086.1,35.78]
[1617770822423,3.8499,2087.9,2086.6,5.85]
[1617770822622,82.9448,2087.9,2086.6,68.161]
[1617770823025,82.9448,2087.9,2087.2,2.90695]
[1617770823424,82.9448,2087.9,2087.3,5.81]
[1617770823625,83.908,2087.9,2087.3,5.81]
[1617770824224,3.8636,2087.9,2087.3,5.81]
[1617770824424,3.8636,2087.9,2087.3,61.8884]
[1617770824623,0.9632,2087.9,2087.3,61.8884]
[1617770824824,0.9632,2087.9,2087.3,60.2515]